bitfinex/quotes_SOLUSD_20230701
["timestamp","ask_amount","ask_price","bid_price","bid_amount"]
[1688232591219,23.057,18.346,18.338,23.066]
[1688232593623,23.056,18.346,18.338,23.066]
[1688232597524,60.7586781,18.35,18.338,23.066]
[1688232597823,61.25855691,18.349,18.338,23.066]
[1688232598824,23.056,18.347,18.338,23.066]
[1688232602608,23.056,18.347,18.333,92.2974]
[1688232602827,55.0,18.346,18.333,92.2974]
[1688232603034,23.06,18.343,18.335,23.07]
[1688232606315,23.059,18.345,18.335,23.07]
[1688232606516,55.0,18.344,18.335,23.07]
[1688232606746,78.059,18.344,18.335,23.07]
[1688232607618,78.059,18.344,18.33,24.73]
[1688232607819,6.30662099,18.343,18.331,20.0]
[1688232608129,55.0,18.342,18.332,23.074]
[1688232608319,55.0,18.342,18.333,20.0]
[1688232608629,55.0,18.342,18.333,43.072]
[1688232609836,78.062,18.342,18.333,43.072]
[1688232610421,55.0,18.342,18.333,43.072]
[1688232612528,46.1070967,18.348,18.333,43.072]
[1688232612732,6.28516797,18.347,18.334,3.02247668]
[1688232613040,29.34116797,18.347,18.337,23.066]
[1688232613239,46.1070967,18.348,18.337,23.066]
[1688232613639,23.054,18.349,18.337,23.066]
[1688232613843,1.72379265,18.348,18.337,23.066]
[1688232614038,3.50862653,18.349,18.337,23.066]
[1688232614428,3.50862653,18.349,18.34,24.73]
[1688232614628,27.66308422,18.35,18.342,23.06]
[1688232615143,23.049,18.352,18.342,23.06]
[1688232615343,20.0,18.351,18.342,23.06]
[1688232615736,43.051,18.351,18.342,23.06]
[1688232616728,23.053,18.349,18.34,47.793]
[1688232617040,55.0,18.35,18.341,23.062]
[1688232617440,23.053,18.349,18.338,99.3443]
[1688232617630,57.06153812,18.348,18.338,99.3443]
[1688232617831,23.058,18.345,18.337,23.068]
[1688232625852,55.0,18.348,18.337,23.068]
[1688232626150,2.24851919,18.347,18.337,23.068]
[1688232626354,4.78062297,18.348,18.337,23.068]
[1688232626552,55.0,18.347,18.337,23.068]
[1688232626856,23.057,18.346,18.337,23.068]
[1688232627036,55.0,18.345,18.337,23.068]
[1688232627534,23.054,18.348,18.337,23.068]
[1688232627936,24.81,18.35,18.337,23.068]
[1688232628235,4.16388236,18.349,18.337,23.068]
[1688232628852,27.21688236,18.349,18.337,23.068]
[1688232629055,4.16388236,18.347,18.337,23.068]
[1688232629956,78.054,18.348,18.337,23.068]
[1688232635754,2.33388944,18.347,18.337,23.068]
[1688232635938,23.058,18.345,18.337,23.068]
[1688232636964,23.058,18.345,18.333,43.072]
[1688232637255,59.358,18.347,18.334,23.071]
[1688232637256,23.062,18.342,18.334,23.071]
[1688232637441,55.0,18.341,18.334,23.071]
[1688232637844,78.063,18.341,18.334,23.071]
[1688232639061,55.0,18.341,18.334,23.071]
[1688232648657,23.058,18.345,18.334,23.071]
[1688232648970,55.0,18.344,18.337,23.067]
[1688232650952,55.0,18.345,18.337,23.067]
[1688232652458,78.058,18.345,18.337,23.067]
[1688232654652,23.056,18.347,18.337,23.067]
[1688232654853,3.16081447,18.346,18.337,23.067]
[1688232656181,58.16081447,18.346,18.337,23.067]
[1688232656772,23.058,18.345,18.337,23.067]
[1688232656958,55.0,18.344,18.337,23.067]
[1688232661957,78.06,18.344,18.334,23.071]
[1688232662159,3.64875295,18.343,18.335,1.10880849]
[1688232662359,26.70875295,18.343,18.335,23.069]
[1688232662559,55.0,18.342,18.335,23.069]
[1688232663764,55.0,18.343,18.335,23.069]
[1688232664074,1.84816632,18.342,18.335,23.069]
[1688232664256,1.84816632,18.342,18.336,0.75921284]
[1688232664463,1.84816632,18.342,18.337,23.067]
[1688232664663,55.0,18.343,18.337,23.067]
[1688232665577,55.0,18.344,18.337,23.067]
[1688232665768,4.91587102,18.343,18.337,23.067]
[1688232665971,55.0,18.342,18.337,23.067]
[1688232666177,23.058,18.345,18.337,23.067]
[1688232666378,5.9251894,18.344,18.337,23.067]
[1688232666681,55.0,18.343,18.338,4.26285034]
[1688232666970,55.0,18.343,18.339,23.064]
[1688232667163,55.0,18.343,18.337,23.067]
[1688232667564,4.68628216,18.343,18.337,23.067]
[1688232667777,55.0,18.342,18.337,23.067]
[1688232668781,55.0,18.342,18.333,20.0]
[1688232668976,5.29861228,18.341,18.337,23.067]
[1688232669665,55.0,18.342,18.332,7.87869314]
[1688232669871,7.44856295,18.341,18.333,20.0]
[1688232670171,9.29103845,18.342,18.334,8.26625366]
[1688232670375,55.0,18.341,18.334,8.26625366]
[1688232670673,9.29103845,18.34,18.337,23.067]
[1688232670880,55.0,18.341,18.337,23.067]
[1688232683488,86.36125621,18.341,18.325,99.3154]
[1688232683788,23.069,18.336,18.327,23.079]
[1688232683968,55.0,18.335,18.328,16.45625944]
[1688232684176,19.46689918,18.334,18.328,16.45625944]
[1688232684377,55.0,18.333,18.327,23.079]
[1688232687392,42.54189918,18.332,18.326,8.55083023]
[1688232687573,19.46689918,18.33,18.326,8.55083023]
[1688232687985,19.46689918,18.33,18.325,23.082]
[1688232689570,19.46689918,18.33,18.321,9.65657925]
[1688232689776,19.46689918,18.33,18.325,23.082]
[1688232689988,55.0,18.331,18.325,23.082]
[1688232691583,78.075,18.331,18.323,33.78573666]
[1688232691901,19.46689918,18.33,18.323,33.78573666]
[1688232692200,55.0,18.329,18.323,33.78573666]
[1688232692495,55.0,18.329,18.323,23.084]
[1688232692683,55.0,18.33,18.323,23.084]
[1688232692886,19.46689918,18.329,18.323,23.084]
[1688232693183,55.0,18.328,18.323,23.084]
[1688232695100,19.46689918,18.328,18.323,23.084]
[1688232695393,55.0,18.327,18.323,23.084]
[1688232696983,55.0,18.327,18.321,23.087]
[1688232697183,19.46689918,18.327,18.321,23.087]
[1688232697389,19.46689918,18.325,18.316,11.19648456]
[1688232697586,19.46689918,18.327,18.318,23.091]
[1688232697791,55.0,18.326,18.316,11.19648456]
[1688232698099,19.46689918,18.324,18.315,34.29048456]
[1688232698296,78.085,18.323,18.315,34.29048456]
[1688232698498,78.085,18.323,18.315,11.19648456]
[1688232698697,3.16657562,18.322,18.315,11.19648456]
[1688232699001,26.25457562,18.322,18.315,11.19648456]
[1688232699204,26.25457562,18.322,18.312,11.19648456]
[1688232699205,46.25457562,18.322,18.312,11.19648456]
[1688232699501,7.66758477,18.32,18.312,23.099]
[1688232700003,55.0,18.319,18.312,23.099]
[1688232701382,4.91254936,18.322,18.313,5.70771125]
[1688232701581,4.91254936,18.322,18.315,23.094]
[1688232701582,24.91254936,18.322,18.315,23.094]
[1688232701805,20.0,18.322,18.315,23.094]
[1688232702383,43.087,18.322,18.315,23.094]
[1688232702582,55.0,18.321,18.315,23.094]
[1688232704184,78.088,18.321,18.313,23.097]
[1688232704501,3.04927971,18.32,18.313,23.097]
[1688232710000,23.18707705,18.321,18.313,23.097]
[1688232710294,20.0,18.322,18.313,23.097]
[1688232710497,2.26181168,18.321,18.313,23.097]
[1688232710699,22.26181168,18.321,18.313,23.097]
[1688232711003,20.0,18.321,18.313,23.097]
[1688232711605,43.088,18.321,18.313,23.097]
[1688232712306,43.088,18.321,18.311,23.099]
[1688232712503,43.088,18.321,18.312,3.98300677]
[1688232712504,82.85466474,18.32,18.312,3.98300677]
[1688232712812,82.543,18.318,18.312,3.98300677]
[1688232713004,63.53211138,18.317,18.308,97.0336]
[1688232713300,63.53211138,18.317,18.304,23.109]
[1688232713301,8.53211138,18.314,18.304,23.109]
[1688232713507,23.099,18.312,18.304,23.109]
[1688232713688,55.0,18.313,18.304,23.109]
[1688232714204,59.451,18.318,18.304,23.109]
[1688232714508,68.0587344,18.317,18.305,2.94469414]
[1688232714695,23.098,18.313,18.306,23.106]
[1688232714896,23.096,18.315,18.306,23.106]
[1688232715104,59.06796524,18.314,18.306,23.106]
[1688232715307,82.16496524,18.314,18.306,23.106]
[1688232716004,78.097,18.314,18.306,23.106]
[1688232716819,8.46783535,18.313,18.306,22.606]
[1688232716987,78.097,18.314,18.306,22.606]
[1688232721800,26.82274129,18.319,18.306,22.606]
[1688232722003,11.35970177,18.318,18.306,22.606]
[1688232722306,11.35970177,18.318,18.312,23.099]
[1688232722502,20.0,18.321,18.312,23.099]
[1688232722817,20.0,18.323,18.313,3.275582]
[1688232723016,20.0,18.323,18.316,23.094]
[1688232723903,55.0,18.322,18.316,23.094]
[1688232724107,20.0,18.321,18.316,23.094]
[1688232724407,1.77644574,18.333,18.316,23.094]
[1688232724613,6.78739066,18.329,18.317,7.1434864]
[1688232724800,8.52411766,18.33,18.32,24.65]
[1688232725007,8.52411766,18.33,18.321,7.1434864]
[1688232725195,27.6282869,18.334,18.323,23.084]
[1688232725408,23.077,18.33,18.321,30.2304864]
[1688232725713,23.077,18.33,18.321,23.087]
[1688232725922,23.084,18.334,18.319,97.6832]
[1688232726113,23.077,18.33,18.321,23.087]
[1688232726415,23.084,18.334,18.321,23.087]
[1688232726607,23.077,18.33,18.322,3.04182413]
[1688232726803,23.077,18.33,18.322,23.086]
[1688232727006,23.07,18.336,18.322,23.086]
[1688232727209,6.38635828,18.335,18.323,27.62489898]
[1688232727402,6.38635828,18.335,18.326,23.081]
[1688232727608,23.07,18.336,18.326,23.081]
[1688232728518,55.0,18.335,18.326,23.081]
[1688232728813,78.07,18.335,18.326,23.081]
[1688232730102,2.3770967,18.334,18.326,23.081]
[1688232730401,55.0,18.335,18.323,20.0]
[1688232730605,5.88494023,18.334,18.324,1.33719445]
[1688232730901,55.0,18.333,18.326,23.081]
[1688232731517,55.0,18.333,18.321,20.0]
[1688232731718,2.11274859,18.332,18.326,23.081]
[1688232731919,55.0,18.333,18.321,20.0]
[1688232732212,2.81960104,18.332,18.322,4.5356134]
[1688232732605,25.89460104,18.332,18.324,23.083]
[1688232732917,55.0,18.331,18.324,23.083]
[1688232735924,12.66083392,18.338,18.325,5.39627934]
[1688232736218,55.0,18.337,18.328,23.078]
[1688232736615,12.66083392,18.336,18.328,23.078]
[1688232736916,55.0,18.337,18.328,23.078]
[1688232736917,55.0,18.335,18.328,23.078]
[1688232737118,2.02214348,18.336,18.328,23.078]
[1688232737304,23.071,18.335,18.326,23.08]
[1688232737505,55.0,18.334,18.326,23.08]
[1688232737909,78.072,18.334,18.326,23.08]
[1688232739905,55.0,18.334,18.326,23.08]
[1688232740106,55.0,18.335,18.326,23.08]
[1688232740306,1.50604185,18.334,18.326,23.08]
[1688232740519,23.071,18.334,18.326,23.08]
[1688232740702,55.0,18.333,18.326,23.08]
[1688232743623,55.0,18.334,18.326,23.08]
[1688232746331,55.0,18.335,18.326,23.08]
[1688232748125,3.1420685,18.335,18.326,23.08]
[1688232748313,3.8007045,18.336,18.326,23.08]
[1688232748724,26.8697045,18.336,18.326,23.08]
[1688232749123,23.069,18.336,18.326,23.08]
[1688232749624,55.0,18.335,18.326,23.08]
[1688232755935,23.07,18.339,18.326,190.928]
[1688232756122,5.42889995,18.338,18.327,5.61618223]
[1688232756434,55.0,18.337,18.33,23.076]
[1688232758828,55.0,18.338,18.33,23.076]
[1688232759824,23.063,18.341,18.33,23.076]
[1688232760029,3.19239492,18.344,18.331,1.30787491]
[1688232760241,23.061,18.343,18.331,1.30787491]
[1688232760447,25.36137315,18.342,18.335,23.07]
[1688232760620,20.0,18.342,18.335,23.07]
[1688232761027,55.0,18.341,18.335,23.07]
[1688232761334,3.22926917,18.344,18.335,23.07]
[1688232761525,23.057,18.346,18.336,3.18973479]
[1688232761931,23.055,18.348,18.339,23.065]
[1688232762139,17.98470241,18.347,18.339,23.065]
[1688232762734,55.0,18.346,18.339,23.065]
[1688232762936,2.25074167,18.346,18.339,23.065]
[1688232763125,78.056,18.347,18.339,23.065]
[1688232763325,2.32255161,18.346,18.339,23.065]
[1688232763933,25.37855161,18.346,18.339,23.065]
[1688232764238,55.0,18.345,18.337,23.067]
[1688232766235,50.36777612,18.35,18.337,23.067]
[1688232766545,9.9809336,18.349,18.338,1.07762374]
[1688232766845,9.9809336,18.349,18.341,23.062]
[1688232767739,55.0,18.348,18.341,23.062]
[1688232767937,1.71037169,18.348,18.341,23.062]
[1688232768440,55.0,18.349,18.341,23.062]
[1688232768738,55.0,18.35,18.341,23.062]
[1688232768936,4.11206801,18.349,18.341,23.062]
[1688232769835,23.054,18.348,18.341,23.062]
[1688232770035,55.0,18.347,18.341,23.062]
[1688232774740,78.055,18.347,18.339,23.064]
[1688232775443,78.055,18.347,18.337,23.067]
[1688232775643,2.69340584,18.346,18.337,23.067]
[1688232775846,23.058,18.345,18.337,23.067]
[1688232776135,55.0,18.344,18.337,23.067]
[1688232778835,78.059,18.344,18.33,179.3099]
[1688232779036,78.059,18.344,18.335,23.069]
[1688232780039,1.53882662,18.343,18.335,23.069]
[1688232782442,55.0,18.344,18.335,23.069]
[1688232784347,26.78734588,18.351,18.336,30.83719922]
[1688232784541,24.8,18.36,18.34,215.618]
[1688232784542,11.07457586,18.35,18.34,215.618]
[1688232784840,13.14469543,18.359,18.346,23.056]
[1688232785229,36.18469543,18.359,18.347,15.03308804]
[1688232785431,36.18469543,18.359,18.35,23.051]
[1688232785625,23.04,18.359,18.35,23.051]
[1688232786029,55.0,18.358,18.35,23.051]
[1688232786226,78.042,18.358,18.35,23.051]
[1688232786626,23.042,18.358,18.345,59.36]
[1688232786833,2.38923094,18.357,18.346,2.40934527]
[1688232787642,25.43223094,18.357,18.346,2.40934527]
[1688232787827,25.43223094,18.357,18.342,8.32579527]
[1688232788034,55.0,18.356,18.343,20.0]
[1688232788233,23.046,18.354,18.346,23.056]
[1688232788437,55.0,18.353,18.346,23.056]
[1688232792256,55.0,18.353,18.346,82.414]
[1688232792657,20.0,18.352,18.346,23.056]
[1688232792957,55.0,18.351,18.346,23.056]
[1688232794371,55.0,18.351,18.339,59.379]
[1688232794547,55.0,18.351,18.344,23.058]
[1688232798053,20.0,18.352,18.344,23.058]
[1688232798265,20.0,18.355,18.344,23.058]
[1688232798454,20.0,18.357,18.344,23.058]
[1688232798654,2.82347221,18.356,18.345,1.69176679]
[1688232798964,23.045,18.356,18.345,23.056]
[1688232799146,8.58943581,18.355,18.34,8.78030447]
[1688232799461,23.049,18.353,18.344,23.058]
[1688232799767,75.0,18.352,18.344,23.058]
[1688232800051,98.05,18.352,18.344,23.058]
[1688232800951,98.05,18.352,18.343,23.059]
[1688232801755,75.0,18.352,18.343,23.059]
[1688232802547,98.049,18.352,18.343,23.059]
[1688232804763,75.0,18.352,18.343,23.059]
[1688232806570,98.049,18.352,18.343,23.059]
[1688232806951,75.0,18.352,18.343,23.059]
[1688232807555,20.0,18.352,18.343,23.059]
[1688232807756,25.7055523,18.359,18.343,23.059]
[1688232807959,23.048,18.353,18.344,3.4228101]
[1688232808263,20.0,18.352,18.345,23.057]
[1688232813674,23.052,18.35,18.341,23.062]
[1688232813876,55.0,18.351,18.341,23.062]
[1688232813877,78.053,18.349,18.341,23.062]
[1688232814071,55.0,18.348,18.341,23.062]
[1688232816476,55.0,18.349,18.341,23.062]
[1688232820476,20.0,18.352,18.341,23.062]
[1688232820676,23.047,18.354,18.341,82.437]
[1688232820977,27.1446429,18.361,18.342,23.20701586]
[1688232821273,23.042,18.358,18.347,23.054]
[1688232821869,1.70046111,18.357,18.347,23.054]
[1688232822067,23.045,18.355,18.347,23.054]
[1688232822581,55.0,18.354,18.347,23.054]
[1688232822768,23.043,18.357,18.347,23.054]
[1688232822963,55.0,18.356,18.347,23.054]
[1688232826786,55.0,18.357,18.347,23.054]
[1688232827099,59.3,18.363,18.347,23.054]
[1688232827100,23.04,18.36,18.347,23.054]
[1688232827389,57.50292294,18.359,18.351,23.05]
[1688232827688,55.0,18.359,18.351,23.05]
[1688232830585,78.04,18.359,18.351,23.05]
[1688232832186,78.04,18.359,18.347,93.4839]
[1688232832187,78.04,18.359,18.349,23.051]
[1688232833991,78.04,18.359,18.347,93.4839]
[1688232834169,78.04,18.359,18.349,23.052]
[1688232838574,55.0,18.359,18.349,23.052]
[1688232839079,55.0,18.358,18.349,23.052]
[1688232839278,55.0,18.36,18.349,23.052]
[1688232839787,1.7120905,18.359,18.349,23.052]
[1688232841080,1.7120905,18.359,18.349,82.401]
[1688232841389,23.036,18.363,18.349,82.401]
[1688232841595,25.41643965,18.362,18.35,1.6310559]
[1688232841780,25.41643965,18.362,18.353,23.047]
[1688232841980,20.0,18.362,18.353,23.047]
[1688232842190,43.036,18.362,18.353,23.047]
[1688232842585,55.0,18.361,18.353,23.047]
[1688232844295,24.5,18.361,18.353,23.047]
[1688232844494,43.036,18.362,18.353,23.047]
[1688232846478,55.0,18.361,18.353,23.047]
[1688232846686,78.038,18.361,18.353,23.047]
[1688232848095,78.038,18.361,18.351,23.049]
[1688232848902,78.038,18.361,18.347,93.4839]
[1688232848903,3.23626814,18.36,18.347,116.5379]
[1688232849106,23.044,18.357,18.347,116.5379]
[1688232849293,55.0,18.356,18.347,116.5379]
[1688232849493,23.045,18.355,18.347,116.5379]
[1688232849694,55.0,18.354,18.347,116.5379]
[1688232849896,78.047,18.354,18.347,116.5379]
[1688232850095,78.047,18.354,18.347,23.054]
[1688232850697,55.0,18.354,18.347,23.054]
[1688232850904,55.0,18.355,18.347,23.054]
[1688232853609,52.5,18.355,18.347,23.054]
[1688232854789,75.545,18.355,18.347,23.054]
[1688232856205,52.5,18.355,18.347,23.054]
[1688232856408,55.0,18.356,18.347,23.054]
[1688232864096,78.044,18.356,18.347,23.054]
[1688232864607,167.499,18.365,18.35,24.78]
[1688232864811,2.47639003,18.361,18.352,23.048]
[1688232865000,43.037,18.362,18.352,23.048]
[1688232865994,78.038,18.361,18.352,23.048]
[1688232866598,55.0,18.361,18.352,23.048]
[1688232866801,78.038,18.361,18.352,23.048]
[1688232874808,55.0,18.361,18.352,23.048]
[1688232875820,78.038,18.361,18.352,23.048]
[1688232876416,55.0,18.361,18.352,23.048]
[1688232876929,78.038,18.361,18.352,23.048]
[1688232880227,24.78,18.37,18.353,20.0]
[1688232880525,23.028,18.369,18.358,23.041]
[1688232881206,24.78,18.37,18.358,23.041]
[1688232881410,49.56,18.37,18.358,82.361]
[1688232881614,72.587,18.37,18.358,23.041]
[1688232882623,55.0,18.369,18.358,23.041]
[1688232884408,55.0,18.369,18.358,82.361]
[1688232889219,78.028,18.369,18.358,82.361]
[1688232891727,55.0,18.369,18.358,82.361]
[1688232891943,55.0,18.37,18.358,82.361]
[1688232892424,78.026,18.37,18.358,82.361]
[1688232893915,78.026,18.37,18.358,23.041]
[1688232895940,102.806,18.37,18.358,23.041]
[1688232896110,102.806,18.37,18.356,23.043]
[1688232896318,3.5877579,18.369,18.356,23.043]
[1688232896619,23.032,18.366,18.356,23.043]
[1688232896822,55.0,18.365,18.356,23.043]
[1688232897032,78.033,18.365,18.356,23.043]
[1688232897232,78.033,18.365,18.352,92.1866]
[1688232897530,78.033,18.365,18.355,23.044]
[1688232900137,55.0,18.365,18.355,23.044]
[1688232902532,2.99774182,18.369,18.356,1.2919751]
[1688232902722,23.025,18.372,18.36,23.038]
[1688232902918,20.0,18.371,18.36,47.808]
[1688232903420,23.026,18.371,18.36,47.808]
[1688232903621,23.026,18.371,18.36,23.038]
[1688232904132,55.0,18.37,18.36,23.038]
[1688232905038,78.027,18.37,18.36,23.038]
[1688232906434,55.0,18.37,18.36,23.038]
[1688232906819,55.0,18.371,18.36,23.038]
[1688232907946,23.026,18.37,18.36,23.038]
[1688232908238,78.027,18.369,18.36,23.038]
[1688232908417,23.027,18.369,18.36,23.038]
[1688232908737,55.0,18.368,18.36,23.038]
[1688232911040,78.029,18.368,18.36,23.038]
[1688232920643,78.029,18.368,18.358,23.04]
[1688232921346,137.316,18.368,18.354,10.83719922]
[1688232921557,3.11392431,18.367,18.354,10.83719922]
[1688232921849,23.033,18.365,18.353,20.0]
[1688232922033,55.0,18.364,18.353,20.0]
[1688232922230,78.034,18.364,18.354,23.045]
[1688232923951,55.0,18.364,18.354,23.045]
[1688232926049,55.0,18.365,18.354,23.045]
[1688232927559,23.031,18.366,18.354,23.045]
[1688232928855,55.0,18.365,18.353,20.0]
[1688232929049,55.0,18.365,18.354,23.046]
[1688232929255,55.0,18.366,18.354,23.046]
[1688232929843,23.035,18.364,18.354,23.046]
[1688232930159,55.0,18.363,18.354,23.046]
[1688232933163,49.94143446,18.369,18.354,23.046]
[1688232933348,1.75114141,18.368,18.36,24.77]
[1688232933541,43.024,18.372,18.362,23.036]
[1688232934554,55.0,18.371,18.362,23.036]
[1688232934752,78.025,18.371,18.362,23.036]
[1688232934959,23.025,18.371,18.362,23.036]
[1688232936361,55.0,18.37,18.362,23.036]
[1688232937854,78.026,18.37,18.362,23.036]
[1688232939843,55.0,18.37,18.362,23.036]
[1688232940047,55.0,18.371,18.362,23.036]
[1688232940250,23.026,18.37,18.36,24.77]
[1688232940456,55.0,18.371,18.362,23.035]
[1688232941466,78.025,18.371,18.362,23.035]
[1688232942567,55.0,18.371,18.362,23.035]
[1688232943260,78.025,18.371,18.36,47.808]
[1688232943459,78.025,18.371,18.36,23.038]
[1688232945667,78.025,18.371,18.354,59.33]
[1688232945871,4.18699955,18.37,18.359,23.039]
[1688232946073,23.03,18.368,18.359,23.039]
[1688232946373,55.0,18.367,18.359,23.039]
[1688232947254,23.032,18.366,18.354,59.33]
[1688232947458,55.0,18.367,18.361,23.037]
[1688232949072,78.031,18.367,18.36,24.77]
[1688232949269,55.0,18.367,18.36,47.808]
[1688232949574,55.0,18.368,18.36,47.808]
[1688232949974,55.0,18.368,18.36,24.77]
[1688232950181,78.03,18.368,18.361,23.037]
[1688232950486,55.0,18.368,18.361,23.037]
[1688232950662,23.027,18.37,18.361,23.037]
[1688232950970,59.77553201,18.375,18.361,23.037]
[1688232951175,23.02,18.376,18.362,20.0]
[1688232951475,23.02,18.376,18.366,23.031]
[1688232951659,23.02,18.376,18.363,95.5328]
[1688232952463,55.0,18.375,18.362,59.304]
[1688232952784,23.022,18.374,18.366,23.03]
[1688232952972,55.0,18.373,18.366,23.03]
[1688232953474,23.02,18.376,18.366,23.03]
[1688232954789,55.0,18.375,18.366,23.03]
[1688232958369,74.66103535,18.38,18.366,23.03]
[1688232958570,23.018,18.377,18.366,23.03]
[1688232959880,55.0,18.376,18.366,23.03]
[1688232960878,78.019,18.376,18.366,23.03]
[1688232963178,55.0,18.376,18.366,23.03]
[1688232963378,55.0,18.377,18.366,23.03]
[1688232965992,78.018,18.377,18.366,23.031]
[1688232967695,55.0,18.377,18.366,23.031]
[1688232968190,55.0,18.378,18.366,23.031]
[1688232971394,23.018,18.377,18.366,23.031]
[1688232972791,55.0,18.378,18.366,190.514]
[1688232973001,55.0,18.379,18.37,24.77]
[1688232973178,78.015,18.379,18.37,24.77]
[1688232973372,78.015,18.379,18.364,59.297]
[1688232973878,78.015,18.379,18.368,23.028]
[1688232974780,55.0,18.379,18.37,24.78]
[1688232974974,78.016,18.379,18.37,47.805]
[1688232977803,59.29,18.384,18.37,107.086]
[1688232978004,59.29,18.384,18.371,75.0]
[1688232978303,23.003,18.389,18.374,190.426]
[1688232978679,23.003,18.389,18.374,201.26319922]
[1688232979098,23.003,18.389,18.374,93.12219922]
[1688232979399,59.203,18.395,18.374,82.285]
[1688232979698,23.002,18.389,18.374,82.285]
[1688232980493,55.0,18.388,18.374,82.285]
[1688232980684,23.005,18.387,18.374,82.285]
[1688232980889,55.0,18.386,18.374,82.285]
[1688232985275,24.78,18.39,18.374,82.285]
[1688232985477,23.0,18.392,18.383,23.009]
[1688232985676,20.0,18.391,18.383,23.009]
[1688232986297,43.0,18.391,18.383,23.009]
[1688232986483,20.0,18.391,18.383,23.009]
[1688232986682,20.0,18.397,18.383,23.009]
[1688232986883,24.77,18.393,18.383,23.009]
[1688232987096,20.0,18.392,18.383,23.009]
[1688232987784,42.999,18.392,18.383,23.009]
[1688232987984,55.0,18.391,18.383,23.009]
[1688232989303,23.002,18.39,18.383,23.009]
[1688232989508,55.0,18.389,18.383,23.009]
[1688232990198,23.0,18.391,18.383,23.009]
[1688232990398,55.0,18.39,18.383,23.009]
[1688232990797,23.0,18.391,18.383,23.009]
[1688232990988,20.0,18.392,18.383,23.009]
[1688232991190,20.0,18.396,18.383,23.009]
[1688232991809,22.999,18.392,18.383,23.009]
[1688232992094,43.0,18.391,18.383,23.009]
[1688232992495,55.0,18.39,18.383,23.009]
[1688232993086,20.0,18.391,18.383,23.009]
[1688232993290,55.0,18.39,18.383,23.009]
[1688232993489,55.0,18.391,18.383,23.009]
[1688232994689,24.77,18.395,18.383,23.009]
[1688232994893,55.0,18.394,18.383,23.009]
[1688232995496,77.997,18.394,18.383,23.009]
[1688232997693,55.0,18.394,18.383,23.009]
[1688232998094,55.0,18.395,18.383,23.009]